bitfinex/quotes_SOLUSD_20250531
["timestamp","ask_amount","ask_price","bid_price","bid_amount"]
[1748687905736,19.99808777,153.31,153.27,6.524434]
[1748687906244,19.99808777,153.31,153.26,6.52485971]
[1748687906547,19.99808777,153.31,153.26,42.83509676]
[1748687906745,19.99808777,153.32,153.27,19.99808777]
[1748687907037,19.99808777,153.32,153.26,22.83700899]
[1748687907038,19.99808777,153.32,153.26,42.83509676]
[1748687907721,19.99808777,153.32,153.27,19.99808777]
[1748687908441,19.99808777,153.32,153.28,6.52400835]
[1748687910414,19.99808777,153.32,153.27,6.524434]
[1748687911914,19.99808777,153.32,153.27,42.83360678]
[1748687912118,19.99808777,153.33,153.27,42.83360678]
[1748687912550,19.99808777,153.34,153.28,19.99808777]
[1748687913421,19.99808777,153.34,153.29,6.52358275]
[1748687914426,19.99808777,153.34,153.29,22.83253962]
[1748687914622,145.79040596,153.38,153.29,42.83062739]
[1748687914828,19.99808777,153.34,153.29,42.83062739]
[1748687915037,19.99808777,153.34,153.29,22.83253962]
[1748687916952,19.99808777,153.32,153.28,6.52384951]
[1748687918049,19.99808777,153.32,153.27,6.524434]
[1748687919147,19.99808777,153.33,153.27,26.52252177]
[1748687921148,19.99808777,153.32,153.27,6.524434]
[1748687921342,19.99808777,153.32,153.27,26.52252177]
[1748687922243,19.99808777,153.33,153.27,42.83360678]
[1748687923160,19.99808777,153.34,153.28,19.99808777]
[1748687923470,19.99808777,153.35,153.29,19.99808777]
[1748687923766,19.99808777,153.34,153.28,19.99808777]
[1748687923951,12.28359758,153.33,153.27,61.11911659]
[1748687925161,12.28359758,153.33,153.27,35.11911659]
[1748687927355,18.80555547,153.33,153.27,18.80803158]
[1748687927565,12.28359758,153.33,153.27,18.80803158]
[1748687929871,12.28359758,153.3,153.26,6.5247787]
[1748687930089,12.28359758,153.3,153.25,14.36281377]
[1748687930360,6.52196684,153.33,153.25,6.52511377]
[1748687930361,12.28359758,153.29,153.25,6.52511377]
[1748687930954,12.28359758,153.31,153.25,18.80871135]
[1748687931639,12.28359758,153.31,153.25,35.12192505]
[1748687931847,12.28359758,153.32,153.27,12.28359758]
[1748687932062,12.28359758,153.33,153.27,12.28359758]
[1748687933046,12.28359758,153.32,153.28,6.52400835]
[1748687933244,6.52162065,153.34,153.28,6.52400835]
[1748687933245,12.28359758,153.33,153.28,6.52400835]
[1748687933667,12.28359758,153.33,153.28,18.80760593]
[1748687934150,12.28359758,153.33,153.28,6.52400835]
[1748687935070,6.52145719,153.34,153.28,6.52400835]
[1748687935566,12.28359758,153.32,153.28,6.52400835]
[1748687936670,6.52145719,153.34,153.25,38.28359758]
[1748687936671,12.28359758,153.3,153.25,38.28359758]
[1748687936967,12.28359758,153.3,153.25,44.80888306]
[1748687937785,12.28359758,153.31,153.25,44.80888306]
[1748687937945,12.28359758,153.31,153.25,61.12209676]
[1748687938543,12.28359758,153.29,153.25,6.52528548]
[1748687939154,12.28359758,153.29,153.24,6.5257113]
[1748687939863,18.80726266,153.29,153.24,6.5257113]
[1748687940062,12.28359758,153.27,153.24,6.5257113]
[1748687940660,12.28359758,153.26,153.22,6.52617205]
[1748687941420,12.28359758,153.3,153.24,12.28359758]
[1748687941560,6.3372,153.33,153.22,6.52617205]
[1748687941561,12.28359758,153.31,153.25,12.28359758]
[1748687942649,12.28359758,153.3,153.25,12.28359758]
[1748687943066,12.28359758,153.3,153.25,6.52494859]
[1748687943289,12.28359758,153.29,153.25,6.52494859]
[1748687943493,12.28359758,153.3,153.25,6.52494859]
[1748687946891,12.28359758,153.28,153.22,18.80980513]
[1748687947196,12.28359758,153.26,153.22,6.52620755]
[1748687949271,18.80849071,153.26,153.21,1.5547]
[1748687949490,12.28359758,153.24,153.19,12.60161301]
[1748687949692,12.28359758,153.24,153.19,24.88521059]
[1748687949890,12.28359758,153.23,153.18,6.52810623]
[1748687950076,12.28359758,153.22,153.18,6.52810623]
[1748687950996,0.14216157,153.28,153.2,12.28359758]
[1748687951199,12.28359758,153.25,153.2,12.28359758]
[1748687951387,12.28359758,153.26,153.21,12.28359758]
[1748687952596,12.28359758,153.26,153.22,6.52656311]
[1748687953209,18.80847302,153.26,153.21,6.52682478]
[1748687953714,12.28359758,153.25,153.21,6.52682478]
[1748687954114,12.28359758,153.26,153.21,6.52682478]
[1748687954993,137.72385003,153.29,153.24,12.28359758]
[1748687955198,12.28359758,153.3,153.25,12.28359758]
[1748687955697,12.28359758,153.31,153.25,12.28359758]
[1748687955924,12.28359758,153.31,153.26,12.28359758]
[1748687956116,12.28359758,153.32,153.26,12.28359758]
[1748687956331,12.28359758,153.32,153.27,12.28359758]
[1748687956696,23.32661181,153.33,153.28,6.52400835]
[1748687956897,12.28359758,153.32,153.28,6.52400835]
[1748687958898,12.28359758,153.33,153.28,6.52400835]
[1748687959297,6.52110138,153.35,153.28,6.52400835]
[1748687959515,12.28359758,153.33,153.28,6.52400835]
[1748687959922,12.28359758,153.33,153.28,18.80760593]
[1748687960109,12.53252615,153.36,153.28,18.80760593]
[1748687960314,32.13914306,153.41,153.28,18.80760593]
[1748687960315,12.28359758,153.35,153.3,12.28359758]
[1748687960625,12.28359758,153.34,153.29,12.28359758]
[1748687960798,12.28359758,153.35,153.29,12.28359758]
[1748687961204,12.28359758,153.35,153.3,6.5231572]
[1748687961526,12.28359758,153.34,153.3,6.5231572]
[1748687962629,12.28359758,153.34,153.29,18.80712531]
[1748687963124,12.28359758,153.34,153.29,6.52352773]
[1748687963428,18.80511914,153.34,153.29,6.52352773]
[1748687964029,12.28359758,153.34,153.29,6.52352773]
[1748687967739,12.28359758,153.32,153.26,12.28359758]
[1748687968826,12.28359758,153.32,153.26,18.80845729]
[1748687969510,6.52204121,153.33,153.27,12.28359758]
[1748687969711,18.80563879,153.33,153.27,12.28359758]
[1748687970036,18.80563879,153.33,153.28,6.52400835]
[1748687971935,18.80563879,153.33,153.27,12.28359758]
[1748687971936,12.28359758,153.31,153.27,6.52427461]
[1748687972112,12.28359758,153.31,153.25,38.77962516]
[1748687972307,28.58516994,153.36,153.25,38.77962516]
[1748687972308,12.28359758,153.3,153.25,18.80852274]
[1748687973119,12.28359758,153.3,153.25,6.52492516]
[1748687973323,12.28359758,153.3,153.24,20.35853414]
[1748687974027,18.80695561,153.3,153.24,20.35853414]
[1748687974749,18.80695561,153.3,153.23,12.28359758]
[1748687974750,12.28359758,153.29,153.23,12.28359758]
[1748687974965,12.28359758,153.28,153.22,12.28359758]
[1748687975146,12.28359758,153.27,153.21,12.81853584]
[1748687975452,22.83125105,153.3,153.21,18.81053342]
[1748687975453,12.28359758,153.26,153.21,18.81053342]
[1748687976121,18.80853539,153.26,153.21,18.81053342]
[1748687976531,18.80853539,153.26,153.21,12.28359758]
[1748687976728,18.80853539,153.26,153.2,13.80759758]
[1748687977434,18.80853539,153.26,153.2,20.33487077]
[1748687978019,18.80853539,153.26,153.2,13.80759758]
[1748687978223,12.28359758,153.26,153.2,20.33500565]
[1748687978449,12.28359758,153.26,153.21,12.28359758]
[1748687978624,6.52429989,153.28,153.23,12.28359758]
[1748687978625,12.28359758,153.28,153.23,12.28359758]
[1748687979014,12.28359758,153.28,153.22,12.28359758]
[1748687979728,12.28359758,153.27,153.22,18.80989084]
[1748687980646,12.28359758,153.27,153.2,17.84253785]
[1748687980647,12.28359758,153.26,153.2,13.80759758]
[1748687980942,12.28359758,153.25,153.2,1.524]
[1748687981141,12.28359758,153.25,153.2,13.80759758]
[1748687981519,12.28359758,153.25,153.2,20.33489331]
[1748687981934,12.28359758,153.25,153.2,13.80759758]
[1748687981935,18.80891032,153.25,153.2,13.80759758]
[1748687982443,18.80891032,153.25,153.2,20.33494103]
[1748687982827,12.28359758,153.25,153.2,20.33494103]
[1748687983051,12.28359758,153.26,153.2,20.33494103]
[1748687983347,12.28359758,153.27,153.21,12.28359758]
[1748687983520,12.28359758,153.27,153.22,6.52656311]
[1748687984127,12.28359758,153.25,153.2,13.80759758]
[1748687985026,12.28359758,153.25,153.2,1.524]
[1748687985842,18.80895669,153.25,153.2,20.33492542]
[1748687987653,12.28359758,153.25,153.2,20.33492542]
[1748687988653,12.28359758,153.25,153.2,1.524]
[1748687988654,18.80890455,153.25,153.2,1.524]
[1748687989159,18.80890455,153.25,153.2,8.05135618]
[1748687989365,12.28359758,153.25,153.2,8.05135618]
[1748687990656,18.8088846,153.25,153.2,8.05135618]
[1748687990858,16.30905103,153.29,153.2,8.05135618]
[1748687990859,16.30905103,153.29,153.2,20.33495376]
[1748687991071,12.28359758,153.27,153.21,12.28359758]
[1748687991234,6.52400835,153.28,153.2,8.05135618]
[1748687991235,6.52400835,153.28,153.22,12.28359758]
[1748687991438,12.28359758,153.27,153.22,12.28359758]
[1748687991846,12.28359758,153.27,153.23,6.52613717]
[1748687992052,18.80807562,153.27,153.21,18.81058667]
[1748687992455,12.28359758,153.27,153.21,18.81058667]
[1748687992646,12.28359758,153.27,153.22,12.28359758]
[1748687993838,12.28359758,153.27,153.22,18.80975319]
[1748687994358,6.5241842,153.28,153.22,18.80975319]
[1748687994562,12.28359758,153.27,153.22,18.80975319]
[1748687995041,12.28359758,153.27,153.22,35.12616096]
[1748687995236,12.28359758,153.29,153.23,12.28359758]
[1748687995445,12.28359758,153.29,153.24,12.28359758]
[1748687995947,12.28359758,153.3,153.24,12.28359758]
[1748687996163,12.28359758,153.3,153.25,6.52528548]
[1748687997643,12.28359758,153.29,153.25,6.52528548]
[1748687998640,12.28359758,153.29,153.2,147.9607861]
[1748687998641,12.28359758,153.26,153.21,6.52698909]
[1748687999170,12.28359758,153.26,153.21,18.81058667]
[1748688000356,18.80846589,153.26,153.21,18.81058667]
[1748688000568,12.28359758,153.25,153.2,6.52726663]
[1748688002156,12.28359758,153.27,153.22,12.28359758]
[1748688002673,12.28359758,153.27,153.21,12.28359758]
[1748688003078,12.28359758,153.27,153.21,18.81018677]
[1748688003243,12.28359758,153.26,153.2,18.81083859]
[1748688004473,12.28359758,153.23,153.17,6.2916]
[1748688004656,12.28359758,153.23,153.17,18.57519758]
[1748688004961,1.6047,153.26,153.18,12.28359758]
[1748688005168,12.28359758,153.23,153.18,18.81145911]
[1748688005470,12.28359758,153.23,153.18,6.52786153]
[1748688005656,12.28359758,153.22,153.17,6.52834463]
[1748688005983,12.28359758,153.22,153.17,18.81194221]
[1748688007046,18.81020377,153.22,153.16,20.39520078]
[1748688007242,12.28359758,153.21,153.16,20.39520078]
[1748688007446,12.28359758,153.22,153.16,20.39520078]
[1748688008166,12.28359758,153.22,153.17,12.28359758]
[1748688008687,1.6047,153.26,153.18,18.81186497]
[1748688009011,12.28359758,153.24,153.19,12.28359758]
[1748688009352,12.28359758,153.25,153.2,12.28359758]
[1748688010074,12.28359758,153.25,153.18,22.84893588]
[1748688010075,12.28359758,153.25,153.19,12.28359758]
[1748688010779,12.28359758,153.25,153.2,6.52741514]
[1748688011567,12.28359758,153.25,153.2,18.81101272]
[1748688012164,12.28359758,153.25,153.2,6.52741514]
[1748688012389,12.28359758,153.23,153.18,18.81186497]
[1748688012756,12.28359758,153.24,153.18,18.81186497]
[1748688013392,12.28359758,153.25,153.2,12.28359758]
[1748688013574,12.28359758,153.26,153.2,12.28359758]
[1748688014690,12.28359758,153.26,153.21,6.52698909]
[1748688015198,12.28359758,153.26,153.21,18.81058667]
[1748688015564,12.28359758,153.25,153.21,6.52698909]
[1748688018183,12.28359758,153.25,153.2,6.52741514]
[1748688020865,6.52454871,153.27,153.2,18.81101272]
[1748688021070,12.28359758,153.26,153.2,18.81101272]
[1748688023790,12.28359758,153.27,153.21,12.28359758]
[1748688024019,12.28359758,153.27,153.22,12.28359758]
[1748688024777,12.28359758,153.27,153.21,12.28359758]
[1748688025587,12.28359758,153.25,153.21,6.52663093]
[1748688026887,12.28359758,153.25,153.2,6.52729404]
[1748688028103,18.80888499,153.25,153.2,6.52729404]
[1748688028780,12.28359758,153.25,153.2,6.52729404]
[1748688028977,12.28359758,153.26,153.2,18.81089162]
[1748688029383,18.80858219,153.26,153.2,18.81089162]
[1748688029582,12.28359758,153.23,153.18,18.81147391]
[1748688031211,18.80981735,153.23,153.18,18.81147391]
[1748688031710,18.80981735,153.23,153.17,18.81220299]
[1748688031907,12.28359758,153.22,153.17,18.81220299]
[1748688032205,12.28359758,153.22,153.16,26.75923891]
[1748688032388,12.28359758,153.21,153.16,20.39503891]
[1748688032904,18.81074112,153.21,153.16,20.39503891]
[1748688033406,18.81074112,153.21,153.16,18.81253891]
[1748688034186,12.28359758,153.21,153.16,18.81253891]
[1748688034380,1.6058,153.24,153.17,12.28359758]
[1748688034608,12.28359758,153.24,153.19,12.28359758]
[1748688035882,12.28359758,153.24,153.19,18.81120246]
[1748688036195,18.80938859,153.24,153.19,18.81120246]
[1748688036398,12.28359758,153.23,153.17,18.81199112]
[1748688037310,12.28359758,153.23,153.18,12.28359758]
[1748688037685,12.28359758,153.24,153.18,12.28359758]
[1748688038810,18.80967482,153.24,153.18,18.81162418]
[1748688040521,6.52544934,153.25,153.19,12.28359758]
[1748688040708,18.80904692,153.25,153.19,12.28359758]
[1748688041589,12.28359758,153.23,153.15,16.32359067]
[1748688041790,12.28359758,153.22,153.17,12.28359758]
[1748688042005,12.28359758,153.23,153.17,12.28359758]
[1748688042185,6.52544934,153.25,153.17,12.28359758]
[1748688042385,6.52544934,153.25,153.14,26.0]
[1748688042386,6.52544934,153.25,153.18,12.28359758]
[1748688042709,12.28359758,153.24,153.19,12.28359758]
[1748688043012,18.80904692,153.25,153.19,12.28359758]
[1748688043588,18.80904692,153.25,153.19,18.81110857]
[1748688045712,12.28359758,153.24,153.19,18.81110857]
[1748688045923,18.80939249,153.24,153.19,18.81110857]
[1748688046691,18.80939249,153.24,153.19,6.52751099]
[1748688051397,18.80939249,153.24,153.18,18.81179532]
[1748688051992,18.80939249,153.24,153.18,6.52819774]
[1748688052191,12.28359758,153.24,153.18,18.81179532]
[1748688052594,12.28359758,153.23,153.18,18.81179532]
[1748688053094,12.28359758,153.24,153.18,18.81179532]
[1748688053410,18.80934927,153.24,153.18,18.81179532]
[1748688061015,12.28359758,153.24,153.18,18.81179532]
[1748688061213,18.80944197,153.24,153.18,18.81179532]
[1748688061601,137.72385003,153.26,153.18,18.81179532]
[1748688061602,137.72385003,153.26,153.18,26.77939532]
[1748688061801,137.72385003,153.26,153.2,12.28359758]
[1748688062116,137.72385003,153.26,153.21,12.28359758]
[1748688062618,137.72385003,153.26,153.22,12.28359758]
[1748688062796,12.28359758,153.27,153.22,12.28359758]
[1748688063003,12.28359758,153.27,153.23,6.52613717]
[1748688063301,12.28359758,153.26,153.2,12.28359758]
[1748688063509,12.28359758,153.24,153.19,18.81143882]
[1748688064121,12.28359758,153.25,153.19,18.81143882]
[1748688065022,6.5257113,153.24,153.19,18.81143882]
[1748688065204,18.80930888,153.24,153.19,18.81143882]
[1748688067926,18.80930888,153.24,153.19,12.28359758]
[1748688068222,18.80930888,153.24,153.14,7.9034]
[1748688068543,12.28359758,153.19,153.14,1.542]
[1748688069121,6.52826739,153.18,153.14,1.542]
[1748688069317,13.10936739,153.18,153.13,1.69689377]
[1748688069517,38.42575915,153.14,153.11,0.8810729]
[1748688069717,12.28359758,153.12,153.11,0.8810729]
[1748688069934,12.42575915,153.12,153.11,0.8810729]
[1748688070236,12.56792072,153.12,153.11,0.8810729]
[1748688070538,12.42575915,153.12,153.11,0.8810729]
[1748688070739,31.21756958,153.12,153.08,2.71355671]
[1748688070947,12.28359758,153.09,153.08,2.71355671]
[1748688071245,12.28359758,153.09,153.0,5.1]
[1748688071246,31.09930045,153.09,153.0,5.1]
[1748688071402,12.28359758,153.07,153.02,12.28359758]
[1748688072216,12.28359758,153.08,153.03,12.28359758]
[1748688073218,12.28359758,153.06,153.0,21.43986928]
[1748688073440,12.28359758,153.06,153.02,12.28359758]
[1748688074324,12.28359758,153.06,153.01,18.81911813]
[1748688074732,12.28359758,153.07,153.02,12.28359758]
[1748688076527,12.28359758,153.07,153.03,6.5346664]
[1748688076963,13.87982885,153.14,153.03,6.5346664]
[1748688076964,12.28359758,153.1,153.04,12.28359758]
[1748688077248,12.28359758,153.1,153.03,22.87133241]
[1748688077249,12.28359758,153.1,153.05,12.28359758]
[1748688077657,10.55304939,153.14,153.06,12.28359758]
[1748688077958,12.28359758,153.12,153.07,12.28359758]
[1748688078322,12.28359758,153.12,153.04,18.64964886]
[1748688078566,12.28359758,153.13,153.07,12.28359758]
[1748688078746,12.28359758,153.12,153.08,6.532532]
[1748688079250,12.28359758,153.09,153.04,6.53423941]
[1748688079448,10.55304939,153.14,153.04,6.53423941]
[1748688079449,12.28359758,153.07,153.04,6.53423941]
[1748688079952,12.28359758,153.07,153.03,6.53454057]
[1748688080319,12.28359758,153.07,153.02,6.5350384]
[1748688080728,12.28359758,153.07,153.02,18.81863598]
[1748688082459,12.28359758,153.07,153.02,6.5350384]
[1748688083543,12.28359758,153.07,153.02,22.87277202]
[1748688083741,12.28359758,153.11,153.06,12.28359758]
[1748688083953,12.28359758,153.12,153.06,12.28359758]
[1748688084126,10.55304939,153.14,153.06,12.28359758]
[1748688084127,12.28359758,153.11,153.06,12.28359758]
[1748688084530,12.28359758,153.12,153.07,12.28359758]
[1748688084832,10.55304939,153.14,153.05,6.53360096]
[1748688084833,12.28359758,153.09,153.05,6.53360096]
[1748688085638,12.28359758,153.1,153.05,18.81719854]
[1748688085952,12.28359758,153.11,153.05,18.81719854]
[1748688086161,12.28359758,153.1,153.05,18.81719854]
[1748688088658,12.28359758,153.1,153.05,6.53360096]
[1748688088837,18.81549593,153.1,153.04,18.81768671]
[1748688089158,12.28359758,153.1,153.04,18.81768671]
[1748688089360,18.81533145,153.1,153.04,18.81768671]
[1748688089523,12.28359758,153.09,153.03,18.8182174]
[1748688089729,12.28359758,153.08,153.03,18.8182174]
[1748688090338,12.28359758,153.08,153.03,12.28359758]
[1748688091031,12.28359758,153.08,153.02,38.28359758]
[1748688091536,12.28359758,153.08,153.03,12.28359758]
[1748688091742,18.81625829,153.08,153.03,12.28359758]
[1748688092128,12.28359758,153.08,153.03,12.28359758]
[1748688092543,18.81628502,153.08,153.03,12.28359758]
[1748688093742,12.28359758,153.09,153.04,12.28359758]
[1748688094264,12.28359758,153.09,153.02,6.53498606]
[1748688094461,12.28359758,153.09,153.03,12.28359758]
[1748688095442,12.28359758,153.08,153.03,12.28359758]
[1748688096037,18.81644285,153.08,153.02,12.28359758]
[1748688096774,18.81586195,153.09,153.04,12.28359758]
[1748688097270,18.81586195,153.09,153.03,12.28359758]
[1748688097271,12.28359758,153.08,153.03,12.28359758]
[1748688097435,6.53226437,153.09,153.03,12.28359758]
[1748688097753,12.28359758,153.08,153.03,12.28359758]
[1748688097968,12.28359758,153.08,153.04,6.53423941]
[1748688098136,18.81586195,153.09,153.04,6.53423941]
[1748688098473,12.28359758,153.1,153.05,12.28359758]
[1748688098963,12.28359758,153.11,153.06,12.28359758]
[1748688099138,12.28359758,153.12,153.07,12.28359758]
[1748688100057,12.28359758,153.12,153.07,18.81645387]
[1748688100058,18.814436,153.12,153.07,18.81645387]
[1748688101153,12.28359758,153.12,153.07,18.81645387]
[1748688101936,35.63943515,153.15,153.11,12.28359758]
[1748688102166,6.52838921,153.18,153.14,12.28359758]
[1748688102167,6.52826739,153.18,153.14,12.28359758]
[1748688102335,137.72385003,153.19,153.14,12.28359758]
[1748688102536,12.28359758,153.19,153.14,12.28359758]
[1748688102963,12.28359758,153.21,153.16,12.28359758]
[1748688103164,12.28359758,153.21,153.16,18.81258693]
[1748688103343,18.8106596,153.21,153.16,18.81258693]
[1748688103537,18.8106596,153.21,153.16,12.28359758]
[1748688103737,18.8106596,153.21,153.16,18.81268954]
[1748688103738,12.28359758,153.21,153.16,18.81268954]
[1748688104167,6.52663326,153.22,153.16,18.81268954]
[1748688104375,18.81023084,153.22,153.16,18.81268954]
[1748688105061,12.28359758,153.21,153.16,6.52909196]
[1748688105265,18.81093743,153.21,153.16,12.28359758]
[1748688105848,18.81093743,153.21,153.15,12.28359758]
[1748688106059,12.28359758,153.18,153.13,12.28359758]
[1748688106467,12.28359758,153.17,153.12,38.28359758]
[1748688106856,6.52733985,153.21,153.12,38.28359758]
[1748688106857,12.28359758,153.18,153.13,12.28359758]
[1748688107637,18.81192246,153.18,153.13,18.81370667]
[1748688107844,18.81192246,153.18,153.13,12.28359758]
[1748688108261,12.28359758,153.18,153.13,18.81399193]
[1748688108448,154.03733893,153.25,153.15,12.28359758]
[1748688108654,12.28359758,153.21,153.15,12.28359758]
[1748688108964,12.28359758,153.21,153.16,12.28359758]
[1748688109342,12.28359758,153.21,153.17,6.5286936]
[1748688109554,12.28359758,153.22,153.17,12.28359758]
[1748688110944,6.52638987,153.23,153.17,12.28359758]
[1748688111260,12.28359758,153.22,153.17,12.28359758]
[1748688111461,12.28359758,153.22,153.17,18.81217998]
[1748688111768,12.28359758,153.22,153.17,12.28359758]
[1748688112146,12.28359758,153.21,153.15,12.28359758]
[1748688112450,12.28359758,153.21,153.16,12.28359758]
[1748688112862,12.28359758,153.21,153.15,12.28359758]
[1748688113376,18.81076533,153.21,153.15,18.81284595]
[1748688113867,12.28359758,153.19,153.14,12.28359758]
[1748688114104,12.28359758,153.18,153.12,6.53065844]
[1748688114373,12.28359758,153.18,153.12,18.81425602]
[1748688114665,12.28359758,153.21,153.15,12.28359758]
[1748688115078,12.28359758,153.2,153.15,12.28359758]
[1748688115653,18.81107182,153.2,153.14,12.28359758]
[1748688116152,12.28359758,153.19,153.13,18.81399658]
[1748688116672,12.28359758,153.17,153.12,18.81442012]
[1748688116855,12.28359758,153.18,153.12,18.81442012]
[1748688117271,12.28359758,153.18,153.13,12.28359758]
[1748688118147,18.81200327,153.18,153.13,12.28359758]
[1748688118353,12.28359758,153.17,153.12,12.28359758]
[1748688118550,12.28359758,153.17,153.1,7.7271]
[1748688118752,12.28359758,153.13,153.07,12.28359758]
[1748688118967,12.28359758,153.12,153.07,6.53295877]
[1748688119774,12.28359758,153.12,153.07,18.81655635]
[1748688119945,35.4169949,153.18,153.09,12.28359758]
[1748688119946,12.28359758,153.14,153.09,12.28359758]
[1748688120763,12.28359758,153.15,153.09,12.28359758]
[1748688120961,12.28359758,153.14,153.09,12.28359758]
[1748688122154,12.28359758,153.14,153.09,18.81543717]
[1748688122850,16.32066849,153.18,153.06,8.1955]
[1748688122851,12.28359758,153.11,153.06,8.1955]
[1748688123057,12.28359758,153.11,153.06,27.01244643]
[1748688123377,6.530399,153.13,153.07,12.28359758]
[1748688123378,12.28359758,153.12,153.07,12.28359758]
[1748688123954,26.0,153.16,153.06,14.72884885]
[1748688123955,12.28359758,153.15,153.09,12.28359758]
[1748688124146,6.52911987,153.16,153.06,40.72884885]
[1748688124147,12.28359758,153.17,153.11,12.28359758]
[1748688124461,137.72385003,153.19,153.11,12.28359758]
[1748688124462,12.28359758,153.16,153.11,12.28359758]
[1748688125374,12.28359758,153.16,153.11,18.81472859]
[1748688126080,12.28359758,153.17,153.12,12.28359758]
[1748688126250,12.28359758,153.17,153.11,6.53113101]
[1748688126457,12.28359758,153.17,153.12,12.28359758]
[1748688127479,12.28359758,153.16,153.11,12.28359758]
[1748688128054,12.28359758,153.17,153.12,12.28359758]
[1748688129179,12.28359758,153.18,153.12,12.28359758]
[1748688129349,18.81187204,153.18,153.13,6.530399]
[1748688129874,18.81187204,153.18,153.12,18.81425279]
[1748688131149,12.28359758,153.17,153.12,12.28359758]
[1748688131473,6.52827446,153.18,153.08,6.53242596]
[1748688131474,12.28359758,153.13,153.08,6.53242596]
[1748688131782,12.28359758,153.11,153.06,8.1955]
[1748688132072,12.28359758,153.09,153.04,12.28359758]
[1748688132371,12.28359758,153.08,153.03,18.81826398]
[1748688133075,12.28359758,153.09,153.04,12.28359758]
[1748688134265,12.28359758,153.1,153.05,12.28359758]
[1748688134471,12.28359758,153.11,153.05,12.28359758]
[1748688135176,12.28359758,153.11,153.06,6.5333856]
[1748688135476,12.28359758,153.11,153.06,18.81698318]
[1748688135653,12.28359758,153.13,153.07,12.28359758]
[1748688135858,12.28359758,153.13,153.08,12.28359758]
[1748688136073,12.28359758,153.12,153.07,12.28359758]
[1748688136269,12.28359758,153.11,153.06,18.81698318]
[1748688136667,12.28359758,153.11,153.06,6.5333856]
[1748688136872,12.28359758,153.11,153.05,18.81726166]
[1748688137083,12.28359758,153.09,153.05,6.53366408]
[1748688137263,12.28359758,153.09,153.04,18.81766822]
[1748688138287,12.28359758,153.1,153.04,18.81766822]
[1748688139802,22.854904,153.14,153.04,18.81766822]
[1748688139957,20.07699617,153.1,153.04,26.61106681]
[1748688141003,20.07699617,153.09,153.04,26.61106681]
[1748688142295,20.07699617,153.1,153.05,38.72664503]
[1748688142605,20.07699617,153.09,153.04,26.61106681]
[1748688145278,20.07699617,153.09,153.04,6.53407064]
[1748688145479,20.07699617,153.1,153.04,26.61106681]
[1748688147691,137.72385003,153.16,153.06,38.72664503]
[1748688148001,20.07699617,153.13,153.07,20.07699617]
[1748688148800,20.07699617,153.13,153.08,6.532532]
[1748688149379,20.07699617,153.12,153.08,6.532532]
[1748688149592,20.07699617,153.11,153.06,6.5333856]
[1748688151479,6.52997739,153.14,153.06,26.61038177]
[1748688151694,20.07699617,153.12,153.06,26.61038177]
[1748688152987,20.07699617,153.09,153.06,6.5333856]
[1748688153300,20.07699617,153.09,153.04,6.53423941]
[1748688155089,20.07699617,153.09,153.04,26.61123558]
[1748688155602,20.07699617,153.09,153.04,42.94683411]
[1748688155790,20.07699617,153.1,153.04,42.94683411]
[1748688156181,20.07699617,153.09,153.04,42.94683411]
[1748688156387,6.53056778,153.13,153.05,20.07699617]
[1748688156603,20.07699617,153.1,153.04,26.61123558]
[1748688156901,20.07699617,153.09,153.04,6.53423941]
[1748688157110,20.07699617,153.07,153.04,6.53423941]
[1748688157705,20.07699617,153.08,153.04,6.53423941]
[1748688158603,20.07699617,153.08,153.03,6.5346664]
[1748688159501,20.07699617,153.11,153.06,20.07699617]
[1748688159800,20.07699617,153.12,153.06,20.07699617]
[1748688160002,137.72385003,153.17,153.07,12.31506013]
[1748688160003,12.31506013,153.13,153.07,12.31506013]
[1748688160608,12.31506013,153.12,153.08,6.532532]
[1748688162406,12.31506013,153.13,153.08,18.84759213]
[1748688162810,12.31506013,153.13,153.08,6.532532]
[1748688163602,6.52925148,153.16,153.08,6.532532]
[1748688163904,12.31506013,153.13,153.08,6.532532]
[1748688165403,12.31506013,153.13,153.08,22.86386202]
[1748688165708,12.31506013,153.17,153.11,12.31506013]
[1748688166037,12.31506013,153.16,153.1,12.31506013]
[1748688166205,12.31506013,153.15,153.09,12.31506013]
[1748688166533,12.31506013,153.15,153.1,12.31506013]
[1748688167219,12.31506013,153.14,153.11,6.53125204]
[1748688167406,6.5286936,153.17,153.11,6.53125204]
[1748688167600,12.31506013,153.15,153.1,18.84656998]
[1748688167800,12.31506013,153.14,153.1,6.53150985]
[1748688168426,12.31506013,153.12,153.09,6.5319372]
[1748688169432,12.31506013,153.12,153.08,6.532532]
[1748688170001,12.31506013,153.13,153.08,6.532532]
[1748688171936,12.31506013,153.13,153.08,18.84759213]
[1748688173139,139.30035003,153.18,153.1,12.31506013]
[1748688173346,12.31506013,153.16,153.11,12.31506013]
[1748688173722,12.31506013,153.15,153.09,12.31506013]
[1748688173904,12.31506013,153.16,153.1,12.31506013]
[1748688174232,12.31506013,153.16,153.11,6.53125204]
[1748688174934,12.31506013,153.15,153.11,6.53125204]
[1748688175835,12.31506013,153.14,153.1,6.53167864]
[1748688176015,12.31506013,153.16,153.1,35.17593537]
[1748688176713,12.31506013,153.17,153.11,12.31506013]
[1748688176910,139.30035003,153.18,153.11,12.31506013]